fUSD/lending_fUSD_20250618
["ID","MTS","AMOUNT","RATE_DAILY","PERIOD"]
[366422584,1750247432287,-2105.41764886,0.00015634,2]
[366422585,1750247432296,-2183.31810187,0.00015689,2]
[366422586,1750247432307,-152.0,0.00015699,5]
[366422587,1750247432317,-2264.10087164,0.00015744,2]
[366422588,1750247432327,-1453.35108448,0.00015799,2]
[366422589,1750247432374,-354.18459024,0.00015799,2]
[366422590,1750247432403,-125.01594223,0.00015799,2]
[366422591,1750247432414,-1382.0,0.00015872,2]
[366422592,1750247432424,-1015.25381628,0.000159,2]
[366422593,1750247432435,-152.0,0.00015922,6]
[366422594,1750247432444,-150.0,0.00015989,2]
[366422595,1750247432455,-799.0,0.00016,3]
[366422596,1750247432466,-495.14,0.00016013,2]
[366422597,1750247432476,-499.11,0.00016013,2]
[366422598,1750247432486,-504.38,0.00016013,2]
[366422599,1750247432497,-1015.25381607,0.00016038,2]
[366422600,1750247432507,-150.0,0.0001605,2]
[366422601,1750247432517,-150.0,0.00016102,2]
[366422602,1750247432527,-152.0,0.00016145,7]
[366422603,1750247432538,-1015.25381607,0.00016176,2]
[366422604,1750247432548,-200.90490397,0.000162,2]
[366422605,1750247432558,-2779.8084494,0.0001627,2]
[366422606,1750247432581,-907.47920294,0.0001627,2]
[366422607,1750247432593,-310.07538915,0.0001627,2]
[366422609,1750247432607,-3002.63695851,0.0001627,2]
[366422611,1750247432617,-516.48315499,0.00016272,2]
[366422613,1750247432627,-150.0,0.00016273,2]
[366422615,1750247432637,-2996.83928394,0.00016274,2]
[366422618,1750247432660,-12339.43423387,0.00016274,2]
[366422620,1750247432669,-200.0,0.00016281,2]
[366422622,1750247432679,-1195.54969077,0.00016282,2]
[366422624,1750247432689,-220.00000003,0.00016285,2]
[366422626,1750247432699,-200.0,0.0001629,2]
[366422628,1750247432709,-4500.07044198,0.0001629,2]
[366422630,1750247432719,-1269.47134209,0.00016294,2]
[366422632,1750247432729,-200.0,0.00016296,2]
[366422634,1750247432738,-197.442,0.00016299,2]
[366422636,1750247432748,-2707.206,0.00016299,2]
[366422638,1750247432758,-2307.97725611,0.000163,2]
[366422639,1750247432768,-2000.0,0.00016303,2]
[366422641,1750247432779,-398.37627739,0.00016303,2]
[366422643,1750247432789,-2000.0,0.00016303,2]
[366422645,1750247432799,-2000.0,0.00016304,2]
[366422647,1750247432810,-2000.0,0.00016304,2]
[366422649,1750247432820,-500.0,0.00016304,2]
[366422651,1750247432830,-200.0,0.00016304,2]
[366422653,1750247432841,-770.65308188,0.00016304,2]
[366422655,1750247432851,-2307.97725611,0.00016305,2]
[366422657,1750247432862,-15336.27351781,0.00016305,2]
[366422659,1750247432871,-503.8,0.00016307,2]
[366422661,1750247432882,-384.66231375,0.00016307,2]
[366422663,1750247432894,-112.94768625,0.00016307,2]
[366422665,1750247432904,-304.66,0.00016307,2]
[366422667,1750247432914,-200.0,0.00016307,2]
[366422669,1750247432924,-200.0,0.00016307,2]
[366422671,1750247432934,-150.0,0.00016311,2]
[366422673,1750247432944,-1195.54969077,0.00016311,2]
[366422675,1750247432955,-770.65308188,0.00016312,2]
[366422678,1750247432965,-2335.22704846,0.00016312,2]
[366422679,1750247432974,-1015.25381607,0.00016314,2]
[366422682,1750247432985,-770.65308188,0.0001632,2]
[366422684,1750247432995,-516.48315499,0.00016321,2]
[366422686,1750247433005,-152.51326047,0.00016322,2]
[366422688,1750247433016,-2724.54302166,0.00016325,2]
[366422690,1750247433026,-200.0,0.00016325,2]
[366422692,1750247433037,-518.60112684,0.00016326,2]
[366422694,1750247433048,-953.93684104,0.00016326,2]
[366422696,1750247433058,-197.89488702,0.00016326,2]
[366422698,1750247433069,-1000.0,0.00016326,2]
[366422700,1750247433080,-4500.07044198,0.00016329,2]
[366422702,1750247433089,-398.37627739,0.00016331,2]
[366422704,1750247433099,-1269.47134209,0.00016333,2]
[366422706,1750247433109,-500.0,0.00016334,2]
[366422708,1750247433120,-1000.0,0.00016334,2]
[366422710,1750247433130,-3771.594,0.00016335,2]
[366422712,1750247433140,-205.68606485,0.00016335,2]
[366422714,1750247433151,-293.33333337,0.00016337,2]
[366422716,1750247433161,-169.47600768,0.00016338,2]
[366422718,1750247433171,-508.43,0.00016338,2]
[366422720,1750247433181,-301.29,0.00016338,2]
[366422722,1750247433192,-2307.97725611,0.00016339,2]
[366422724,1750247433202,-250.0,0.00016344,2]
[366422726,1750247433212,-2335.22704846,0.00016346,2]
[366422728,1750247433223,-15336.27351781,0.00016349,2]
[366422730,1750247433233,-1269.47134209,0.00016355,2]
[366422732,1750247433243,-293.33333337,0.0001636,2]
[366422734,1750247433254,-398.37627739,0.00016362,2]
[366422736,1750247433264,-516.48315499,0.00016362,2]
[366422738,1750247433274,-4500.07044198,0.00016364,2]
[366422740,1750247433285,-152.0,0.00016368,8]
[366422742,1750247433295,-2335.22704846,0.00016369,2]
[366422745,1750247433309,-293.33333337,0.00016374,2]
[366422747,1750247433320,-200.0,0.00016374,2]
[366422749,1750247433331,-220.00000003,0.00016378,2]
[366422751,1750247433341,-50964.73092708,0.0001638,2]
[366422753,1750247433351,-2724.5430216,0.00016381,2]
[366422755,1750247433362,-953.93684102,0.00016382,2]
[366422757,1750247433374,-1195.54969077,0.00016384,2]
[366422759,1750247433388,-200.0,0.00016387,2]
[366422761,1750247433399,-200.0,0.00016394,2]
[366422763,1750247433410,-220.00000003,0.00016396,2]
[366422765,1750247433422,-1000.0,0.000164,2]
[366422767,1750247433432,-1000.0,0.000164,2]
[366422769,1750247433443,-1000.0,0.000164,2]
[366422771,1750247433453,-401.77585494,0.000164,3]
[366422773,1750247433467,-598.22414506,0.000164,3]
[366422775,1750247433478,-414.69976645,0.000164,3]
[366422779,1750247433503,-372.51000098,0.000164,3]
[366422782,1750247433524,-212.79023257,0.000164,3]
[366422784,1750247433534,-916.29806093,0.000164,2]
[366422786,1750247433546,-696.8401546,0.000164,2]
[366422788,1750247433559,-1340.97790059,0.000164,2]
[366422789,1750247438040,-2744.25566807,0.000164,2]
[366422790,1750247438162,-1301.62821581,0.000164,2]
[366422791,1750247438172,-176.49,0.00016416,2]
[366422792,1750247438182,-150.0,0.00016422,2]
[366422793,1750247438192,-176.49,0.00016425,2]
[366422794,1750247438202,-506.55178419,0.00016425,2]
[366422819,1750247440602,-272.49230327,0.00016425,2]
[366422820,1750247440628,-3434.44,0.00016425,2]
[366422821,1750247440640,-911.93905103,0.00016425,2]
[366422822,1750247440673,-530.9050867,0.00016425,2]
[366422839,1750247444018,-205.0,0.00015179,2]
[366422840,1750247444028,-500.0,0.00016424,2]
[366422841,1750247444038,-168.5812377,0.00016424,2]
[366422842,1750247444048,-169.18035308,0.00016424,2]
[366422843,1750247444058,-258.69515136,0.00016424,2]
[366422844,1750247444068,-500.0,0.00016424,2]
[366422845,1750247444078,-500.0,0.00016424,2]
[366422846,1750247444087,-500.0,0.00016424,2]
[366422847,1750247444097,-500.0,0.00016424,2]
[366422848,1750247444106,-500.0,0.00016424,2]
[366422849,1750247444115,-500.0,0.00016424,2]
[366422850,1750247444125,-493.88317356,0.00016424,2]
[366422851,1750247444135,-245076.32607361,0.00016425,2]
[366422852,1750247444156,-99325.44660894,0.00016425,2]
[366422853,1750247444185,-3119.33276107,0.00016425,2]
[366422854,1750247444235,-138565.66485786,0.00016425,2]
[366422855,1750247444248,-107276.6552775,0.00016425,2]
[366422856,1750247444289,-475.76828711,0.00016425,2]
[366422864,1750247446064,-385.0,0.00016425,2]
[366422865,1750247446076,-2851.03371446,0.00016425,2]
[366422867,1750247446118,-1852.50381806,0.00016425,2]
[366422868,1750247446130,-2690.57090005,0.00016425,2]
[366422869,1750247446249,-21283.15541333,0.00016425,2]
[366422870,1750247446259,-11375.2489644,0.00016425,2]
[366422871,1750247446268,-70399.8548646,0.00016426,2]
[366422872,1750247446277,-2843.9122734,0.00016426,2]
[366422873,1750247446287,-2194.2226869,0.00016426,2]
[366422874,1750247446298,-3401.591054,0.00016426,2]
[366422875,1750247446307,-941.9134367,0.00016426,2]
[366422876,1750247446320,-151.0,0.00016426,2]
[366422877,1750247446329,-151.0,0.00016426,2]
[366422878,1750247446338,-151.0,0.00016426,2]
[366422879,1750247446348,-175.139088,0.00016426,2]
[366422880,1750247446357,-175.139088,0.00016426,2]
[366422881,1750247446367,-151.818371,0.00016426,2]
[366422882,1750247446376,-287.171088,0.00016426,2]
[366422883,1750247446388,-285.778843,0.00016426,2]
[366422884,1750247446397,-151.0,0.00016426,2]
[366422885,1750247446407,-151.0,0.00016426,2]
[366422886,1750247446419,-11197.092454,0.00016426,2]
[366422887,1750247446428,-151.0,0.00016426,2]
[366422888,1750247446438,-32321.344803,0.00016426,2]
[366422889,1750247446448,-242.123961,0.00016426,2]
[366422890,1750247446458,-151.0,0.00016426,2]
[366422891,1750247446468,-242.123961,0.00016426,2]
[366422892,1750247446477,-2056.5866344,0.00016426,2]
[366422893,1750247446487,-151.0,0.00016426,2]
[366422894,1750247446496,-650.726884,0.00016426,2]
[366422895,1750247446506,-650.726884,0.00016426,2]
[366422896,1750247446515,-334.471479,0.00016426,2]
[366422898,1750247446525,-334.471479,0.00016426,2]
[366422899,1750247446534,-176.49,0.00016428,2]
[366422900,1750247446544,-151.0,0.00016433,2]
[366422901,1750247446553,-334.471479,0.00016433,2]
[366422903,1750247446563,-334.471479,0.00016433,2]
[366422904,1750247446572,-505.78,0.00016434,2]
[366422905,1750247446582,-504.5,0.00016434,2]
[366422906,1750247446591,-151.0,0.00016434,2]
[366422907,1750247446601,-151.0,0.00016434,2]
[366422908,1750247446610,-151.0,0.00016434,2]
[366422909,1750247446619,-151.0,0.00016434,2]
[366422910,1750247446629,-151.0,0.00016434,2]
[366422911,1750247446638,-152.042463,0.00016434,2]
[366422912,1750247446648,-151.0,0.00016434,2]
[366422913,1750247446657,-151.0,0.00016434,2]
[366422914,1750247446666,-150.0,0.00016434,2]
[366422915,1750247446676,-150.0,0.00016434,2]
[366422916,1750247446685,-500.0,0.00016434,2]
[366422917,1750247446695,-150.0,0.00016434,2]
[366422918,1750247446704,-500.0,0.00016434,2]
[366422919,1750247446713,-156.1604607,0.00016434,2]
[366422920,1750247446723,-151.55347305,0.00016434,2]
[366422921,1750247446733,-222.60531671,0.00016434,2]
[366422922,1750247446743,-500.0,0.00016434,2]
[366422923,1750247446753,-150.0,0.00016434,2]
[366422924,1750247446762,-150.0,0.00016434,2]
[366422925,1750247446771,-150.0,0.00016434,2]
[366422926,1750247446780,-151.0,0.00016434,2]
[366422927,1750247446790,-151.0,0.00016434,2]
[366422928,1750247446801,-178.29859729,0.00016434,2]
[366422929,1750247446810,-150.0,0.00016434,2]
[366422930,1750247446821,-500.0,0.00016434,2]
[366422931,1750247446833,-151.0,0.00016434,2]
[366422932,1750247446842,-151.0,0.00016434,2]
[366422933,1750247446852,-151.0,0.00016434,2]
[366422934,1750247446861,-151.0,0.00016434,2]
[366422935,1750247446871,-175.139088,0.00016434,2]
[366422936,1750247446880,-175.139088,0.00016434,2]
[366422937,1750247446890,-151.0,0.00016434,2]
[366422938,1750247446899,-151.0,0.00016434,2]
[366422939,1750247446909,-168.599064,0.00016434,2]
[366422940,1750247446918,-151.0,0.00016434,2]
[366422941,1750247446927,-151.795176,0.00016434,2]
[366422942,1750247446937,-242.123961,0.00016434,2]
[366422943,1750247446946,-151.0,0.00016434,2]
[366422944,1750247446955,-242.123961,0.00016434,2]
[366422945,1750247446964,-650.726884,0.00016434,2]
[366422946,1750247446973,-650.726884,0.00016434,2]
[366422947,1750247446983,-500.0,0.00016434,2]
[366422948,1750247446992,-35302.12522813,0.00016435,2]
[366422949,1750247447002,-152.391546,0.00016435,2]
[366422950,1750247447011,-151.0,0.00016435,2]
[366422951,1750247447020,-154.823371,0.00016435,2]
[366422952,1750247447029,-43.41049645,0.00016435,2]
[366422953,1750247447043,-108.01790555,0.00016435,2]
[366422954,1750247447053,-1088.90649962,0.00016435,2]
[366422955,1750247447062,-151.0,0.00016435,2]
[366422956,1750247447073,-151.0,0.00016435,2]
[366422957,1750247447082,-151.0,0.00016435,2]
[366422958,1750247447091,-151.0,0.00016435,2]
[366422959,1750247447101,-151.0,0.00016435,2]
[366422960,1750247447111,-151.0,0.00016435,2]
[366422961,1750247447120,-151.0,0.00016435,2]
[366422962,1750247447130,-151.0,0.00016435,2]
[366422963,1750247447139,-9777.06669893,0.00016435,2]
[366422964,1750247447151,-459.48999997,0.00016435,2]
[366422965,1750247447170,-4827.76868043,0.00016435,2]
[366422966,1750247447179,-151.0,0.00016435,2]
[366422967,1750247447189,-151.0,0.00016435,2]
[366422968,1750247447198,-293.159184,0.00016435,2]
[366422969,1750247447207,-151.0,0.00016435,2]
[366422970,1750247447216,-151.0,0.00016435,2]
[366422971,1750247447230,-151.0,0.00016435,2]
[366422972,1750247447243,-151.0,0.00016435,2]
[366422973,1750247447257,-151.0,0.00016435,2]
[366422974,1750247447270,-151.0,0.00016435,2]
[366422975,1750247447281,-151.0,0.00016435,2]
[366422976,1750247447294,-151.0,0.00016435,2]
[366422977,1750247447307,-151.0,0.00016435,2]
[366422978,1750247447319,-151.0,0.00016435,2]
[366422979,1750247447333,-151.0,0.00016435,2]
[366422980,1750247447345,-153.153755,0.00016435,2]
[366422981,1750247447359,-151.0,0.00016435,2]
[366422982,1750247447371,-152.378151,0.00016435,2]
[366422983,1750247447386,-151.0,0.00016435,2]
[366422984,1750247447396,-385.824452,0.00016435,2]
[366422985,1750247447409,-385.824452,0.00016435,2]
[366422986,1750247447422,-278.128175,0.00016435,2]
[366422987,1750247447435,-151.0,0.00016435,2]
[366422988,1750247447449,-484.749088,0.00016435,2]
[366422989,1750247447462,-151.0,0.00016435,2]
[366422990,1750247447477,-484.749088,0.00016435,2]
[366422991,1750247447491,-264.931958,0.00016435,2]
[366422992,1750247447503,-151.0,0.00016435,2]
[366422993,1750247447518,-151.0,0.00016435,2]
[366422994,1750247447532,-151.0,0.00016435,2]
[366422995,1750247447546,-151.0,0.00016435,2]
[366422996,1750247447558,-251.679281,0.00016435,2]
[366422997,1750247447571,-151.0,0.00016435,2]
[366422998,1750247447584,-151.0,0.00016435,2]
[366422999,1750247447596,-151.0,0.00016435,2]
[366423000,1750247447610,-151.0,0.00016435,2]
[366423001,1750247447623,-151.0,0.00016435,2]
[366423002,1750247447635,-151.0,0.00016435,2]
[366423003,1750247447647,-151.0,0.00016435,2]
[366423004,1750247447659,-151.0,0.00016435,2]
[366423005,1750247447670,-151.649131,0.00016435,2]
[366423006,1750247447682,-151.0,0.00016435,2]
[366423007,1750247447697,-152.919761,0.00016435,2]
[366423008,1750247447710,-151.0,0.00016435,2]
[366423009,1750247447720,-834.647784,0.00016435,2]
[366423010,1750247447731,-834.647784,0.00016435,2]
[366423011,1750247447743,-151.0,0.00016435,2]
[366423012,1750247447755,-151.0,0.00016435,2]
[366423013,1750247447769,-151.0,0.00016435,2]
[366423014,1750247447781,-834.647784,0.00016435,2]
[366423015,1750247447792,-834.647784,0.00016435,2]
[366423016,1750247447804,-151.0,0.00016435,2]
[366423017,1750247447815,-151.0,0.00016435,2]
[366423018,1750247447827,-151.0,0.00016435,2]
[366423019,1750247447846,-151.0,0.00016435,2]
[366423020,1750247447857,-286.851544,0.00016435,2]
[366423021,1750247447869,-175.139088,0.00016435,2]
[366423022,1750247447880,-175.139088,0.00016435,2]
[366423023,1750247447892,-151.0,0.00016435,2]
[366423024,1750247447904,-151.0,0.00016435,2]
[366423025,1750247447916,-151.0,0.00016435,2]
[366423026,1750247447928,-242.123961,0.00016435,2]
[366423027,1750247447939,-151.0,0.00016435,2]
[366423028,1750247447951,-242.123961,0.00016435,2]
[366423029,1750247447962,-151.0,0.00016435,2]
[366423030,1750247447973,-650.726884,0.00016435,2]
[366423031,1750247447985,-650.726884,0.00016435,2]
[366423032,1750247447996,-334.471479,0.00016435,2]
[366423033,1750247448007,-334.471479,0.00016435,2]
[366423034,1750247448019,-151.0,0.00016437,2]
[366423035,1750247448031,-151.0,0.00016437,2]
[366423036,1750247448044,-151.0,0.00016437,2]
[366423037,1750247448056,-151.0,0.00016437,2]
[366423038,1750247448068,-151.0,0.00016437,2]
[366423039,1750247448079,-151.0,0.00016437,2]
[366423040,1750247448092,-151.0,0.00016437,2]
[366423041,1750247448105,-151.0,0.00016437,2]
[366423042,1750247448117,-151.0,0.00016437,2]
[366423043,1750247448130,-151.0,0.00016437,2]
[366423044,1750247448142,-151.0,0.00016437,2]
[366423045,1750247448153,-188.565043,0.00016437,2]
[366423046,1750247448165,-151.0,0.00016437,2]
[366423047,1750247448177,-151.0,0.00016437,2]
[366423048,1750247448189,-188.44,0.00016437,2]
[366423049,1750247448202,-151.0,0.00016437,2]
[366423050,1750247448213,-248.571207,0.00016437,2]
[366423051,1750247448226,-151.0,0.00016437,2]
[366423052,1750247448238,-151.0,0.00016437,2]
[366423053,1750247448250,-151.0,0.00016437,2]
[366423054,1750247448262,-151.0,0.00016437,2]
[366423055,1750247448274,-151.0,0.00016437,2]
[366423056,1750247448286,-151.0,0.00016437,2]
[366423057,1750247448298,-151.0,0.00016437,2]
[366423058,1750247448310,-344.19337075,0.00016437,2]
[366423059,1750247448327,-324.66021369,0.00016437,2]
[366423060,1750247448338,-666.0,0.00016437,2]
[366423061,1750247448351,-671.22150464,0.00016437,2]
[366423062,1750247448363,-289.67835344,0.00016437,2]
[366423063,1750247448388,-2434.86466816,0.00016437,2]
[366423064,1750247448400,-1020.0,0.00016438,2]
[366423065,1750247448412,-151.72289,0.00016438,2]
[366423066,1750247448426,-151.0,0.00016438,2]
[366423067,1750247448439,-151.0,0.00016438,2]
[366423068,1750247448451,-151.0,0.00016438,2]
[366423069,1750247448463,-151.0,0.00016438,2]
[366423070,1750247448478,-239.673524,0.00016438,2]
[366423071,1750247448491,-151.0,0.00016438,2]
[366423072,1750247448503,-151.620772,0.00016438,2]
[366423073,1750247448516,-151.0,0.00016438,2]
[366423074,1750247448528,-151.0,0.00016438,2]
[366423075,1750247448542,-186.940268,0.00016438,2]
[366423076,1750247448554,-151.112169,0.00016438,2]
[366423077,1750247448566,-151.0,0.00016438,2]
[366423078,1750247448579,-257.712027,0.00016438,2]
[366423079,1750247448591,-151.0,0.00016438,2]
[366423080,1750247448603,-151.0,0.00016438,2]
[366423081,1750247448617,-151.0,0.00016438,2]
[366423082,1750247448629,-151.0,0.00016438,2]
[366423083,1750247448642,-151.0,0.00016438,2]
[366423084,1750247448655,-151.0,0.00016438,2]
[366423085,1750247448668,-151.0,0.00016438,2]
[366423086,1750247448681,-151.0,0.00016438,2]
[366423087,1750247448695,-151.413886,0.00016438,2]
[366423088,1750247448708,-151.0,0.00016438,2]
[366423089,1750247448721,-258.469195,0.00016438,2]
[366423090,1750247448734,-151.0,0.00016438,2]
[366423091,1750247448746,-151.0,0.00016438,2]
[366423092,1750247448758,-151.0,0.00016438,2]
[366423093,1750247448771,-151.0,0.00016438,2]
[366423094,1750247448784,-151.0,0.00016438,2]
[366423095,1750247448799,-151.0,0.00016438,2]
[366423096,1750247448811,-151.0,0.00016438,2]
[366423097,1750247448823,-151.0,0.00016438,2]
[366423098,1750247448835,-151.0,0.00016438,2]
[366423099,1750247448848,-151.0,0.00016438,2]
[366423100,1750247448861,-151.0,0.00016438,2]
[366423101,1750247448873,-151.0,0.00016438,2]
[366423102,1750247448885,-151.0,0.00016438,2]
[366423103,1750247448896,-151.0,0.00016438,2]
[366423104,1750247448909,-151.0,0.00016438,2]
[366423105,1750247448921,-151.0,0.00016438,2]
[366423106,1750247448933,-151.0,0.00016438,2]
[366423107,1750247448945,-151.0,0.00016438,2]
[366423108,1750247448957,-151.0,0.00016438,2]
[366423109,1750247448969,-18.87860659,0.00016438,2]
[366423110,1750247449715,-132.12139341,0.00016438,2]
[366423111,1750247449727,-151.0,0.00016438,2]
[366423112,1750247449739,-151.0,0.00016438,2]
[366423113,1750247449751,-151.0,0.00016438,2]
[366423114,1750247449763,-170.346206,0.00016438,2]
[366423115,1750247449774,-178.980426,0.00016438,2]
[366423116,1750247449786,-151.0,0.00016438,2]
[366423117,1750247449798,-151.0,0.00016438,2]
[366423118,1750247449809,-151.0,0.00016438,2]
[366423119,1750247449821,-151.0,0.00016438,2]
[366423120,1750247449833,-151.0,0.00016438,2]
[366423121,1750247449844,-151.0,0.00016438,2]
[366423122,1750247449856,-151.0,0.00016438,2]
[366423123,1750247449867,-151.0,0.00016438,2]
[366423124,1750247449878,-151.0,0.00016438,2]
[366423125,1750247449888,-151.859175,0.00016438,2]
[366423126,1750247449897,-151.0,0.00016438,2]
[366423127,1750247449907,-151.0,0.00016438,2]
[366423128,1750247449917,-151.0,0.00016438,2]
[366423129,1750247449926,-151.0,0.00016438,2]
[366423130,1750247449936,-151.0,0.00016438,2]
[366423131,1750247449946,-151.0,0.00016438,2]
[366423132,1750247449956,-151.0,0.00016438,2]
[366423133,1750247449966,-151.0,0.00016438,2]
[366423134,1750247449976,-151.0,0.00016438,2]
[366423135,1750247449986,-151.0,0.00016438,2]
[366423136,1750247449996,-151.0,0.00016438,2]
[366423137,1750247450006,-151.0,0.00016438,2]
[366423138,1750247450015,-151.0,0.00016438,2]
[366423139,1750247450025,-151.0,0.00016438,2]
[366423140,1750247450034,-151.0,0.00016438,2]
[366423141,1750247450045,-151.0,0.00016438,2]
[366423142,1750247450055,-196.250916,0.00016438,2]
[366423143,1750247450064,-243.180948,0.00016438,2]
[366423144,1750247450074,-151.0,0.00016438,2]
[366423145,1750247450084,-151.0,0.00016438,2]
[366423146,1750247450094,-202.0,0.00016438,2]
[366423147,1750247450104,-151.0,0.00016438,2]
[366423148,1750247450114,-151.723763,0.00016438,2]
[366423149,1750247450123,-151.0,0.00016438,2]
[366423150,1750247450133,-151.0,0.00016438,2]
[366423151,1750247450143,-151.0,0.00016438,2]
[366423152,1750247450153,-151.0,0.00016438,2]
[366423153,1750247450162,-151.0,0.00016438,2]
[366423154,1750247450764,-151.0,0.00016438,2]
[366423155,1750247450811,-151.0,0.00016438,2]
[366423156,1750247450845,-151.0,0.00016438,2]
[366423157,1750247450864,-188.747099,0.00016438,2]
[366423158,1750247450873,-151.0,0.00016438,2]
[366423159,1750247450884,-210.609183,0.00016438,2]
[366423160,1750247450893,-151.0,0.00016438,2]
[366423161,1750247450903,-151.0,0.00016438,2]
[366423162,1750247450913,-151.0,0.00016438,2]
[366423163,1750247450924,-151.0,0.00016438,2]
[366423164,1750247450933,-151.0,0.00016438,2]
[366423165,1750247450943,-151.0,0.00016438,2]
[366423166,1750247450953,-270.072069,0.00016438,2]
[366423167,1750247450963,-151.0,0.00016438,2]
[366423168,1750247450973,-151.0,0.00016438,2]
[366423169,1750247450993,-151.0,0.00016438,2]
[366423170,1750247451004,-151.0,0.00016438,2]
[366423171,1750247451015,-300.691172,0.00016438,2]
[366423172,1750247451026,-151.0,0.00016438,2]
[366423173,1750247451036,-151.728297,0.00016438,2]
[366423174,1750247451048,-151.0,0.00016438,2]
[366423175,1750247451058,-151.0,0.00016438,2]
[366423176,1750247451068,-151.0,0.00016438,2]
[366423177,1750247451078,-151.0,0.00016438,2]
[366423178,1750247451088,-151.0,0.00016438,2]
[366423179,1750247451098,-151.0,0.00016438,2]
[366423180,1750247451108,-151.0,0.00016438,2]
[366423181,1750247451118,-151.0,0.00016438,2]
[366423182,1750247451128,-151.0,0.00016438,2]
[366423183,1750247451139,-206.321302,0.00016438,2]
[366423184,1750247451149,-151.0,0.00016438,2]
[366423185,1750247451159,-151.0,0.00016438,2]
[366423186,1750247451168,-151.0,0.00016438,2]
[366423187,1750247451178,-293.996178,0.00016438,2]
[366423188,1750247451188,-151.0,0.00016438,2]
[366423189,1750247451198,-151.0,0.00016438,2]
[366423190,1750247451208,-151.0,0.00016438,2]
[366423191,1750247451219,-151.0,0.00016438,2]
[366423192,1750247451229,-285.910761,0.00016438,2]
[366423193,1750247451239,-151.0,0.00016438,2]
[366423194,1750247451249,-151.0,0.00016438,2]
[366423195,1750247451259,-151.0,0.00016438,2]
[366423196,1750247451270,-151.0,0.00016438,2]
[366423197,1750247451280,-151.0,0.00016438,2]
[366423198,1750247451289,-151.0,0.00016438,2]
[366423199,1750247451302,-151.0,0.00016438,2]
[366423200,1750247451312,-151.0,0.00016438,2]
[366423201,1750247451322,-151.0,0.00016438,2]
[366423202,1750247451332,-151.0,0.00016438,2]
[366423203,1750247451343,-151.0,0.00016438,2]
[366423204,1750247451353,-151.0,0.00016438,2]
[366423205,1750247451363,-151.0,0.00016438,2]
[366423206,1750247451373,-151.0,0.00016438,2]
[366423207,1750247451385,-151.0,0.00016438,2]
[366423208,1750247451396,-151.0,0.00016438,2]
[366423209,1750247451405,-189.820096,0.00016438,2]
[366423210,1750247451415,-490.0,0.00016438,2]
[366423211,1750247451432,-491.93237683,0.00016438,2]
[366423212,1750247451442,-151.0,0.00016438,2]
[366423213,1750247451452,-181.983132,0.00016438,2]
[366423214,1750247451463,-490.0,0.00016438,2]
[366423215,1750247451473,-490.0,0.00016438,2]
[366423216,1750247451484,-151.0,0.00016438,2]
[366423217,1750247451494,-151.0,0.00016438,2]
[366423218,1750247451504,-151.0,0.00016438,2]
[366423219,1750247451514,-490.0,0.00016438,2]
[366423220,1750247451524,-151.0,0.00016438,2]
[366423221,1750247451535,-151.0,0.00016438,2]
[366423222,1750247451546,-151.0,0.00016438,2]
[366423223,1750247451556,-1014.689898,0.00016438,2]
[366423224,1750247451567,-151.0,0.00016438,2]
[366423225,1750247451577,-151.0,0.00016438,2]
[366423226,1750247451587,-151.0,0.00016438,2]